fUSD/lending_fUSD_20250204
["ID","MTS","AMOUNT","RATE_DAILY","PERIOD"]
[351676560,1738707060409,-555.18,0.00010819,2]
[351676561,1738707060419,-352.76,0.00010819,2]
[351676562,1738707060429,-500.0,0.00010819,2]
[351676563,1738707060440,-623.43,0.00010819,2]
[351676564,1738707060450,-500.0,0.00010819,2]
[351676565,1738707060460,-500.0,0.00010819,2]
[351676566,1738707060470,-500.0,0.00010819,2]
[351676567,1738707060480,-500.0,0.00010819,2]
[351676568,1738707060489,-500.0,0.00010819,2]
[351676569,1738707060499,-500.0,0.00010819,2]
[351676570,1738707060507,-500.0,0.00010819,2]
[351676571,1738707060517,-18072.54828934,0.0001082,2]
[351676572,1738707060531,-1000.0,0.00010854,2]
[351676573,1738707060541,-180.394776,0.00010878,2]
[351676574,1738707060552,-215.10642896,0.000109,2]
[351676575,1738707060562,-215.10642892,0.000109,2]
[351676576,1738707060572,-215.10642892,0.000109,2]
[351676577,1738707060582,-215.10642892,0.000109,2]
[351676578,1738707060592,-215.10642892,0.000109,2]
[351676579,1738707060602,-1059.0,0.00010933,2]
[351676580,1738707060612,-500.0,0.00010954,2]
[351676581,1738707060621,-353.489039,0.00010954,2]
[351676582,1738707060631,-554.61,0.00010954,2]
[351676583,1738707060640,-403.700368,0.00010954,2]
[351676584,1738707060649,-500.0,0.00010954,2]
[351676585,1738707060659,-161.660854,0.00010954,2]
[351676586,1738707060669,-500.0,0.00010954,2]
[351676587,1738707060679,-500.0,0.00010954,2]
[351676588,1738707060688,-500.0,0.00010954,2]
[351676589,1738707060698,-500.0,0.00010954,2]
[351676590,1738707060708,-500.0,0.00010954,2]
[351676591,1738707060718,-500.66,0.00010954,2]
[351676592,1738707060727,-500.0,0.00010954,2]
[351676593,1738707060736,-500.0,0.00010954,2]
[351676594,1738707060746,-885.15,0.00010954,2]
[351676595,1738707060756,-500.0,0.00010954,2]
[351676596,1738707060765,-500.0,0.00010954,2]
[351676597,1738707060780,-591.26,0.00010954,2]
[351676598,1738707060790,-1818.58,0.00010954,2]
[351676599,1738707060800,-500.0,0.00010954,2]
[351676600,1738707060809,-500.0,0.00010954,2]
[351676601,1738707060818,-1544.89,0.00010954,2]
[351676602,1738707060828,-728.98,0.00010954,2]
[351676603,1738707060838,-500.0,0.00010954,2]
[351676604,1738707060848,-500.0,0.00010954,2]
[351676605,1738707060857,-371.8,0.00010954,2]
[351676606,1738707060867,-500.0,0.00010954,2]
[351676607,1738707060877,-500.0,0.00010954,2]
[351676608,1738707060886,-328.63,0.00010954,2]
[351676609,1738707060896,-500.0,0.00010954,2]
[351676610,1738707060906,-676.15,0.00010954,2]
[351676611,1738707060915,-670.54,0.00010954,2]
[351676612,1738707060925,-500.0,0.00010954,2]
[351676613,1738707060934,-581.21,0.00010954,2]
[351676614,1738707060944,-500.0,0.00010954,2]
[351676615,1738707060954,-500.0,0.00010954,2]
[351676616,1738707060964,-500.0,0.00010954,2]
[351676617,1738707060974,-500.0,0.00010954,2]
[351676618,1738707060983,-1009.26,0.00010954,2]
[351676619,1738707060992,-500.0,0.00010954,2]
[351676620,1738707061003,-500.0,0.00010954,2]
[351676621,1738707061012,-500.0,0.00010954,2]
[351676622,1738707061025,-647.11,0.00010954,2]
[351676623,1738707061037,-500.0,0.00010954,2]
[351676624,1738707061047,-703.09,0.00010954,2]
[351676625,1738707061057,-500.0,0.00010954,2]
[351676626,1738707061067,-500.0,0.00010954,2]
[351676627,1738707061076,-500.0,0.00010954,2]
[351676628,1738707061086,-500.0,0.00010954,2]
[351676629,1738707061095,-500.0,0.00010954,2]
[351676630,1738707061105,-868.55,0.00010954,2]
[351676631,1738707061115,-500.0,0.00010954,2]
[351676632,1738707061124,-500.0,0.00010954,2]
[351676633,1738707061134,-500.0,0.00010955,2]
[351676634,1738707061143,-172.35,0.00010955,2]
[351676635,1738707061153,-500.0,0.00010955,2]
[351676636,1738707061162,-500.0,0.00010955,2]
[351676637,1738707061172,-500.0,0.00010955,2]
[351676638,1738707061181,-243.15,0.00010955,2]
[351676639,1738707061192,-427.4,0.00010955,2]
[351676640,1738707061202,-173.49,0.00010955,2]
[351676641,1738707061213,-415.49,0.00010955,2]
[351676642,1738707061223,-500.0,0.00010955,2]
[351676643,1738707061233,-500.0,0.00010955,2]
[351676644,1738707061243,-307.25,0.00010955,2]
[351676645,1738707061253,-500.0,0.00010955,2]
[351676646,1738707061264,-646.74,0.00010955,2]
[351676647,1738707061282,-555.49,0.00010955,2]
[351676648,1738707061293,-500.0,0.00010955,2]
[351676649,1738707061303,-205.37,0.00010955,2]
[351676650,1738707061313,-500.0,0.00010955,2]
[351676651,1738707061323,-500.0,0.00010955,2]
[351676652,1738707061333,-500.0,0.00010955,2]
[351676653,1738707061344,-500.0,0.00010955,2]
[351676654,1738707061354,-157.21,0.00010955,2]
[351676655,1738707061363,-500.0,0.00010955,2]
[351676656,1738707061371,-500.0,0.00010955,2]
[351676657,1738707061381,-500.0,0.00010955,2]
[351676658,1738707061390,-284.4,0.00010955,2]
[351676659,1738707061400,-500.0,0.00010955,2]
[351676660,1738707061409,-500.0,0.00010955,2]
[351676661,1738707061419,-503.02828,0.00010955,2]
[351676662,1738707061430,-500.0,0.00010955,2]
[351676663,1738707061439,-568.13,0.00010955,2]
[351676664,1738707061448,-500.0,0.00010955,2]
[351676665,1738707061457,-500.0,0.00010955,2]
[351676666,1738707061467,-500.0,0.00010955,2]
[351676667,1738707061476,-500.0,0.00010955,2]
[351676668,1738707061486,-628.79,0.00010955,2]
[351676669,1738707061495,-500.0,0.00010955,2]
[351676670,1738707061505,-500.0,0.00010955,2]
[351676671,1738707061514,-500.0,0.00010955,2]
[351676672,1738707061528,-500.0,0.00010955,2]
[351676673,1738707061537,-500.0,0.00010955,2]
[351676674,1738707061547,-500.0,0.00010955,2]
[351676675,1738707061557,-500.0,0.00010955,2]
[351676676,1738707061567,-500.0,0.00010955,2]
[351676677,1738707061576,-500.0,0.00010955,2]
[351676678,1738707061585,-500.0,0.00010955,2]
[351676679,1738707061595,-500.0,0.00010955,2]
[351676680,1738707061604,-500.0,0.00010955,2]
[351676681,1738707061614,-500.0,0.00010955,2]
[351676682,1738707061622,-1279.62,0.00010955,2]
[351676683,1738707061632,-500.0,0.00010955,2]
[351676684,1738707061641,-1183.97,0.00010955,2]
[351676685,1738707061650,-500.0,0.00010955,2]
[351676686,1738707061659,-659.04,0.00010955,2]
[351676687,1738707061668,-500.0,0.00010955,2]
[351676688,1738707061678,-1266.36,0.00010955,2]
[351676689,1738707061687,-399.29,0.00010955,2]
[351676690,1738707061695,-719.74,0.00010955,2]
[351676691,1738707061705,-500.0,0.00010955,2]
[351676692,1738707061715,-673.33,0.00010955,2]
[351676693,1738707061723,-459.21626245,0.00010955,2]
[351676694,1738707061732,-500.0,0.00010955,2]
[351676695,1738707061741,-787.56,0.00010955,2]
[351676696,1738707061750,-500.0,0.00010955,2]
[351676697,1738707061759,-500.0,0.00010955,2]
[351676698,1738707061769,-500.0,0.00010955,2]
[351676699,1738707061781,-279.1,0.00010955,2]
[351676700,1738707061790,-500.0,0.00010955,2]
[351676701,1738707061799,-500.0,0.00010955,2]
[351676702,1738707061809,-500.0,0.00010955,2]
[351676703,1738707061818,-500.0,0.00010955,2]
[351676704,1738707061827,-500.0,0.00010955,2]
[351676705,1738707061836,-500.0,0.00010955,2]
[351676706,1738707061845,-500.0,0.00010955,2]
[351676707,1738707061854,-500.0,0.00010955,2]
[351676708,1738707061863,-1390.62,0.00010955,2]
[351676709,1738707061872,-598.21,0.00010955,2]
[351676710,1738707061881,-379.45,0.00010955,2]
[351676711,1738707061890,-500.0,0.00010955,2]
[351676712,1738707061898,-500.0,0.00010956,2]
[351676713,1738707061906,-410.56,0.00010956,2]
[351676714,1738707061914,-500.0,0.00010956,2]
[351676715,1738707061923,-500.0,0.00010956,2]
[351676716,1738707061931,-500.0,0.00010956,2]
[351676717,1738707061941,-500.0,0.00010956,2]
[351676718,1738707061951,-500.0,0.00010956,2]
[351676719,1738707061963,-500.0,0.00010956,2]
[351676720,1738707061972,-500.0,0.00010956,2]
[351676721,1738707061980,-500.0,0.00010956,2]
[351676722,1738707061989,-151.622,0.00010958,2]
[351676723,1738707061998,-150.0,0.00010959,2]
[351676724,1738707062007,-178.63424479,0.0001099,2]
[351676725,1738707062015,-325.96513822,0.0001099,2]
[351676726,1738707062028,-3072.92549862,0.00010992,2]
[351676727,1738707062038,-431.43955898,0.00010996,2]
[351676728,1738707062048,-151.85,0.00011047,2]
[351676729,1738707062058,-500.0,0.00011091,2]
[351676730,1738707062068,-500.0,0.00011091,2]
[351676731,1738707062078,-353.489039,0.00011091,2]
[351676732,1738707062088,-403.700368,0.00011091,2]
[351676733,1738707062098,-500.0,0.00011091,2]
[351676734,1738707062108,-500.0,0.00011091,2]
[351676735,1738707062119,-500.0,0.00011091,2]
[351676736,1738707062129,-500.0,0.00011091,2]
[351676737,1738707062139,-500.0,0.00011091,2]
[351676738,1738707062149,-500.0,0.00011091,2]
[351676739,1738707062158,-500.66,0.00011091,2]
[351676740,1738707062167,-500.0,0.00011091,2]
[351676741,1738707062177,-500.0,0.00011091,2]
[351676742,1738707062187,-885.15,0.00011091,2]
[351676743,1738707062196,-500.0,0.00011091,2]
[351676744,1738707062206,-500.0,0.00011091,2]
[351676745,1738707062216,-591.26,0.00011091,2]
[351676746,1738707062226,-1818.58,0.00011091,2]
[351676747,1738707062235,-500.0,0.00011091,2]
[351676748,1738707062244,-500.0,0.00011091,2]
[351676749,1738707062255,-1544.89,0.00011091,2]
[351676750,1738707062266,-728.98,0.00011091,2]
[351676751,1738707062284,-500.0,0.00011091,2]
[351676752,1738707062294,-500.0,0.00011091,2]
[351676753,1738707062304,-500.0,0.00011091,2]
[351676754,1738707062314,-500.0,0.00011091,2]
[351676755,1738707062324,-500.0,0.00011091,2]
[351676756,1738707062334,-676.15,0.00011091,2]
[351676757,1738707062344,-670.54,0.00011091,2]
[351676758,1738707062353,-500.0,0.00011091,2]
[351676759,1738707062363,-581.21,0.00011091,2]
[351676760,1738707062373,-500.0,0.00011091,2]
[351676761,1738707062382,-500.0,0.00011091,2]
[351676762,1738707062392,-500.0,0.00011091,2]
[351676763,1738707062401,-500.0,0.00011091,2]
[351676764,1738707062410,-1009.26,0.00011091,2]
[351676765,1738707062420,-500.0,0.00011091,2]
[351676766,1738707062429,-500.0,0.00011091,2]
[351676767,1738707062438,-500.0,0.00011091,2]
[351676768,1738707062447,-647.11,0.00011091,2]
[351676769,1738707062456,-500.0,0.00011091,2]
[351676770,1738707062466,-703.09,0.00011091,2]
[351676771,1738707062476,-500.0,0.00011091,2]
[351676772,1738707062485,-500.0,0.00011091,2]
[351676773,1738707062494,-539.71,0.00011091,2]
[351676774,1738707062503,-500.0,0.00011091,2]
[351676775,1738707062513,-500.0,0.00011091,2]
[351676776,1738707062525,-868.55,0.00011091,2]
[351676777,1738707062535,-500.0,0.00011091,2]
[351676778,1738707062545,-500.0,0.00011091,2]
[351676779,1738707062554,-500.0,0.00011092,2]
[351676780,1738707062564,-500.0,0.00011092,2]
[351676781,1738707062574,-500.0,0.00011092,2]
[351676782,1738707062584,-500.0,0.00011092,2]
[351676783,1738707062593,-500.0,0.00011092,2]
[351676784,1738707062602,-500.0,0.00011092,2]
[351676785,1738707062613,-500.0,0.00011092,2]
[351676786,1738707062623,-500.0,0.00011092,2]
[351676787,1738707062632,-194.67,0.00011092,2]
[351676788,1738707062641,-500.0,0.00011092,2]
[351676789,1738707062651,-500.0,0.00011092,2]
[351676790,1738707062661,-500.0,0.00011092,2]
[351676791,1738707062671,-500.0,0.00011092,2]
[351676792,1738707062680,-400.41,0.00011092,2]
[351676793,1738707062690,-500.0,0.00011092,2]
[351676794,1738707062700,-500.0,0.00011092,2]
[351676795,1738707062709,-235.95,0.00011092,2]
[351676796,1738707062719,-500.0,0.00011092,2]
[351676797,1738707062728,-500.0,0.00011092,2]
[351676798,1738707062740,-500.0,0.00011092,2]
[351676799,1738707062750,-219.28,0.00011092,2]
[351676800,1738707062759,-500.0,0.00011092,2]
[351676801,1738707062769,-500.0,0.00011092,2]
[351676802,1738707062784,-500.0,0.00011092,2]
[351676803,1738707062793,-500.0,0.00011092,2]
[351676804,1738707062803,-500.0,0.00011092,2]
[351676805,1738707062813,-500.0,0.00011092,2]
[351676806,1738707062823,-584.88,0.00011092,2]
[351676807,1738707062832,-500.0,0.00011092,2]
[351676808,1738707062841,-500.0,0.00011092,2]
[351676809,1738707062850,-500.0,0.00011092,2]
[351676810,1738707062860,-500.0,0.00011092,2]
[351676811,1738707062869,-500.0,0.00011092,2]
[351676812,1738707062878,-500.0,0.00011092,2]
[351676813,1738707062887,-500.0,0.00011092,2]
[351676814,1738707062896,-1279.62,0.00011092,2]
[351676815,1738707062905,-200.06,0.00011092,2]
[351676816,1738707062915,-1183.97,0.00011092,2]
[351676817,1738707062923,-500.0,0.00011092,2]
[351676818,1738707062933,-659.04,0.00011092,2]
[351676819,1738707062947,-549.86,0.00011092,2]
[351676820,1738707062956,-1266.36,0.00011092,2]
[351676821,1738707062965,-719.74,0.00011092,2]
[351676822,1738707062974,-500.0,0.00011092,2]
[351676823,1738707062984,-673.33,0.00011092,2]
[351676824,1738707062993,-500.0,0.00011092,2]
[351676825,1738707063002,-787.56,0.00011092,2]
[351676826,1738707063012,-500.0,0.00011092,2]
[351676827,1738707063025,-335.76,0.00011092,2]
[351676828,1738707063037,-184.49,0.00011092,2]
[351676829,1738707063047,-500.0,0.00011092,2]
[351676830,1738707063057,-500.0,0.00011092,2]
[351676831,1738707063067,-500.0,0.00011092,2]
[351676832,1738707063077,-500.0,0.00011092,2]
[351676833,1738707063087,-470.45,0.00011092,2]
[351676834,1738707063098,-500.0,0.00011092,2]
[351676835,1738707063108,-500.0,0.00011092,2]
[351676836,1738707063117,-159.98495593,0.00011092,2]
[351676837,1738707063127,-1390.62,0.00011092,2]
[351676838,1738707063137,-500.0,0.00011092,2]
[351676839,1738707063146,-500.0,0.00011093,2]
[351676840,1738707063155,-500.0,0.00011093,2]
[351676841,1738707063165,-500.0,0.00011093,2]
[351676842,1738707063174,-500.0,0.00011093,2]
[351676843,1738707063185,-566.82,0.00011093,2]
[351676844,1738707063194,-500.0,0.00011093,2]
[351676845,1738707063204,-500.0,0.00011093,2]
[351676846,1738707063213,-500.0,0.00011093,2]
[351676847,1738707063223,-500.0,0.00011093,2]
[351676848,1738707063233,-178.63424479,0.00011195,2]
[351676849,1738707063243,-150.0,0.00011207,2]
[351676850,1738707063253,-150.0,0.0001121,2]
[351676851,1738707063262,-150.0,0.00011226,2]
[351676852,1738707063276,-150.0,0.00011228,2]
[351676853,1738707063286,-500.0,0.00011228,2]
[351676854,1738707063296,-353.489039,0.00011228,2]
[351676855,1738707063305,-403.700368,0.00011228,2]
[351676856,1738707063315,-500.0,0.00011228,2]
[351676857,1738707063324,-500.0,0.00011228,2]
[351676858,1738707063334,-500.0,0.00011228,2]
[351676859,1738707063344,-500.0,0.00011228,2]
[351676860,1738707063353,-500.0,0.00011228,2]
[351676861,1738707063364,-500.0,0.00011228,2]
[351676862,1738707063375,-500.66,0.00011228,2]
[351676863,1738707063386,-500.0,0.00011228,2]
[351676864,1738707063397,-500.0,0.00011228,2]
[351676865,1738707063408,-885.15,0.00011228,2]
[351676866,1738707063419,-234.65,0.00011228,2]
[351676867,1738707063430,-500.0,0.00011228,2]
[351676868,1738707063440,-591.26,0.00011228,2]
[351676869,1738707063451,-1818.58,0.00011228,2]
[351676870,1738707063461,-500.0,0.00011228,2]
[351676871,1738707063471,-500.0,0.00011228,2]
[351676872,1738707063482,-1544.89,0.00011228,2]
[351676873,1738707063493,-728.98,0.00011228,2]
[351676874,1738707063503,-500.0,0.00011228,2]
[351676875,1738707063513,-246.47,0.00011228,2]
[351676876,1738707063528,-500.0,0.00011228,2]
[351676877,1738707063538,-500.0,0.00011228,2]
[351676878,1738707063549,-227.65,0.00011228,2]
[351676879,1738707063559,-676.15,0.00011228,2]
[351676880,1738707063569,-670.54,0.00011228,2]
[351676881,1738707063579,-500.0,0.00011228,2]
[351676882,1738707063590,-581.21,0.00011228,2]
[351676883,1738707063601,-500.0,0.00011228,2]
[351676884,1738707063611,-500.0,0.00011228,2]
[351676885,1738707063622,-500.0,0.00011228,2]
[351676886,1738707063632,-500.0,0.00011228,2]
[351676887,1738707063643,-1009.26,0.00011228,2]
[351676888,1738707063653,-500.0,0.00011228,2]
[351676889,1738707063663,-500.0,0.00011228,2]
[351676890,1738707063673,-500.0,0.00011228,2]
[351676891,1738707063684,-647.11,0.00011228,2]
[351676892,1738707063695,-500.0,0.00011228,2]
[351676893,1738707063705,-703.09,0.00011228,2]
[351676894,1738707063716,-500.0,0.00011228,2]
[351676895,1738707063727,-500.0,0.00011228,2]
[351676896,1738707063737,-150.0,0.00011228,2]
[351676897,1738707063748,-500.0,0.00011228,2]
[351676898,1738707063758,-500.0,0.00011228,2]
[351676899,1738707063768,-868.55,0.00011228,2]
[351676900,1738707063783,-500.0,0.00011228,2]
[351676901,1738707063793,-500.0,0.00011228,2]
[351676902,1738707063804,-152.86,0.00011229,2]
[351676903,1738707063814,-500.0,0.00011229,2]
[351676904,1738707063824,-449.72,0.00011229,2]
[351676905,1738707063834,-500.0,0.00011229,2]
[351676906,1738707063844,-500.0,0.00011229,2]
[351676907,1738707063854,-500.0,0.00011229,2]
[351676908,1738707063864,-500.0,0.00011229,2]
[351676909,1738707063875,-500.0,0.00011229,2]
[351676910,1738707063886,-500.0,0.00011229,2]
[351676911,1738707063897,-500.0,0.00011229,2]
[351676912,1738707063909,-152.99,0.00011229,2]
[351676913,1738707063919,-500.0,0.00011229,2]
[351676914,1738707063929,-500.0,0.00011229,2]
[351676915,1738707063940,-644.87,0.00011229,2]
[351676916,1738707063951,-560.13,0.00011229,2]
[351676917,1738707063963,-500.0,0.00011229,2]
[351676918,1738707063973,-500.0,0.00011229,2]
[351676919,1738707063983,-500.0,0.00011229,2]
[351676920,1738707063993,-500.0,0.00011229,2]
[351676921,1738707064005,-500.0,0.00011229,2]
[351676922,1738707064015,-306.18,0.00011229,2]
[351676923,1738707064029,-275.87,0.00011229,2]
[351676924,1738707064039,-500.0,0.00011229,2]
[351676925,1738707064049,-500.0,0.00011229,2]
[351676926,1738707064060,-500.0,0.00011229,2]
[351676927,1738707064070,-500.0,0.00011229,2]
[351676928,1738707064079,-500.0,0.00011229,2]
[351676929,1738707064090,-500.0,0.00011229,2]
[351676930,1738707064100,-500.0,0.00011229,2]
[351676931,1738707064110,-500.0,0.00011229,2]
[351676932,1738707064120,-1279.62,0.00011229,2]
[351676933,1738707064131,-1183.97,0.00011229,2]
[351676934,1738707064141,-500.0,0.00011229,2]
[351676935,1738707064152,-659.04,0.00011229,2]
[351676936,1738707064162,-1266.36,0.00011229,2]
[351676937,1738707064173,-719.74,0.00011229,2]
[351676938,1738707064183,-500.0,0.00011229,2]
[351676939,1738707064194,-673.33,0.00011229,2]
[351676940,1738707064204,-358.65,0.00011229,2]
[351676941,1738707064214,-787.56,0.00011229,2]
[351676942,1738707064223,-500.0,0.00011229,2]
[351676943,1738707064234,-500.0,0.00011229,2]
[351676944,1738707064245,-500.0,0.00011229,2]
[351676945,1738707064255,-500.0,0.00011229,2]
[351676946,1738707064265,-500.0,0.00011229,2]
[351676947,1738707064277,-500.0,0.00011229,2]
[351676948,1738707064287,-1390.62,0.00011229,2]
[351676949,1738707064298,-644.97,0.00011229,2]
[351676950,1738707064308,-500.0,0.0001123,2]
[351676951,1738707064319,-500.0,0.0001123,2]
[351676952,1738707064329,-500.0,0.0001123,2]
[351676953,1738707064341,-500.0,0.0001123,2]
[351676954,1738707064351,-500.0,0.0001123,2]
[351676955,1738707064361,-500.0,0.0001123,2]
[351676956,1738707064372,-500.0,0.0001123,2]
[351676957,1738707064382,-500.0,0.0001123,2]
[351676958,1738707064392,-150.0,0.00011232,2]
[351676959,1738707064403,-150.0,0.00011234,2]
[351676960,1738707064413,-150.0,0.00011236,2]
[351676961,1738707064423,-150.0,0.00011239,2]
[351676962,1738707064433,-150.0,0.00011242,2]
[351676963,1738707064443,-150.0,0.00011245,2]
[351676964,1738707064454,-4000.0,0.0001125,2]
[351676965,1738707064464,-150.0,0.00011253,2]
[351676966,1738707064474,-150.0,0.00011253,2]
[351676967,1738707064484,-150.0,0.00011254,2]
[351676968,1738707064494,-150.0,0.00011266,2]
[351676969,1738707064506,-150.0,0.00011267,2]
[351676970,1738707064516,-674.0783377,0.00011269,2]
[351676971,1738707064531,-150.0,0.0001127,2]
[351676972,1738707064542,-150.0,0.00011274,2]
[351676973,1738707064553,-150.0,0.00011274,2]
[351676974,1738707064564,-150.0,0.00011274,2]
[351676975,1738707064574,-150.0,0.00011276,2]
[351676976,1738707064585,-150.0,0.00011279,2]
[351676977,1738707064596,-150.0,0.00011281,2]
[351676978,1738707064609,-150.0,0.00011282,2]
[351676979,1738707064620,-150.0,0.00011285,2]
[351676980,1738707064630,-150.0,0.00011285,2]
[351676981,1738707064640,-150.0,0.00011287,2]
[351676982,1738707064651,-300.0,0.00011288,2]
[351676983,1738707064661,-150.0,0.00011301,2]
[351676984,1738707064671,-150.0,0.00011304,2]
[351676985,1738707064680,-150.0,0.00011304,2]
[351676986,1738707064691,-150.0,0.00011307,2]
[351676987,1738707064701,-150.0,0.0001131,2]
[351676988,1738707064711,-150.0,0.00011311,2]
[351676989,1738707064721,-150.0,0.00011313,2]
[351676990,1738707064731,-150.0,0.00011317,2]
[351676991,1738707064741,-150.0,0.00011321,2]
[351676992,1738707064750,-150.0,0.00011323,2]
[351676993,1738707064760,-1000.0,0.00011324,2]
[351676994,1738707064770,-150.0,0.00011327,2]
[351676995,1738707064784,-1867.0,0.00011333,2]
[351676996,1738707064794,-1288.238,0.00011333,2]
[351676997,1738707064804,-907.0,0.00011333,2]
[351676998,1738707064813,-2952.0,0.00011333,2]
[351676999,1738707064824,-782.0,0.00011333,2]
[351677000,1738707064834,-538.0,0.00011333,2]
[351677001,1738707064844,-150.0,0.00011333,2]
[351677002,1738707064856,-150.0,0.00011334,2]
[351677003,1738707064866,-150.0,0.00011338,2]
[351677004,1738707064876,-3910.0,0.0001134,2]
[351677005,1738707064886,-150.0,0.0001134,2]
[351677006,1738707064897,-1007.0,0.0001134,2]
[351677007,1738707064907,-844.423,0.0001134,2]
[351677008,1738707064916,-150.0,0.0001134,2]
[351677009,1738707064925,-150.0,0.00011344,2]
[351677010,1738707064935,-150.0,0.00011346,2]
[351677011,1738707064950,-150.0,0.00011347,2]
[351677012,1738707064960,-150.0,0.00011348,2]
[351677013,1738707064970,-150.0,0.00011349,2]
[351677014,1738707064979,-150.0,0.00011352,2]
[351677015,1738707064990,-1125.82748698,0.00011358,2]
[351677016,1738707065001,-150.0,0.00011358,2]
[351677017,1738707065011,-150.0,0.00011359,2]
[351677018,1738707065021,-150.0,0.0001136,2]
[351677019,1738707065037,-150.0,0.00011361,2]
[351677020,1738707065049,-296.61059995,0.00011365,2]
[351677021,1738707065059,-155.003976,0.00011365,2]
[351677022,1738707065069,-500.0,0.00011365,2]
[351677023,1738707065079,-353.489039,0.00011365,2]
[351677024,1738707065090,-403.700368,0.00011365,2]
[351677025,1738707065101,-500.0,0.00011365,2]
[351677026,1738707065111,-500.0,0.00011365,2]
[351677027,1738707065122,-500.0,0.00011365,2]
[351677028,1738707065133,-500.0,0.00011365,2]
[351677029,1738707065144,-500.0,0.00011365,2]
[351677030,1738707065154,-500.0,0.00011365,2]
[351677031,1738707065165,-500.66,0.00011365,2]
[351677032,1738707065175,-500.0,0.00011365,2]
[351677033,1738707065186,-500.0,0.00011365,2]
[351677034,1738707065197,-885.15,0.00011365,2]
[351677035,1738707065208,-500.0,0.00011365,2]
[351677036,1738707065219,-591.26,0.00011365,2]
[351677037,1738707065230,-1818.58,0.00011365,2]
[351677038,1738707065241,-500.0,0.00011365,2]
[351677039,1738707065252,-500.0,0.00011365,2]
[351677040,1738707065262,-1544.89,0.00011365,2]
[351677041,1738707065278,-728.98,0.00011365,2]
[351677042,1738707065289,-500.0,0.00011365,2]
[351677043,1738707065299,-500.0,0.00011365,2]
[351677044,1738707065310,-500.0,0.00011365,2]
[351677045,1738707065534,-676.15,0.00011365,2]
[351677046,1738707065545,-670.54,0.00011365,2]
[351677047,1738707065555,-500.0,0.00011365,2]
[351677048,1738707065566,-581.21,0.00011365,2]
[351677049,1738707065576,-500.0,0.00011365,2]
[351677050,1738707065587,-500.0,0.00011365,2]
[351677051,1738707065597,-150.0,0.00011365,2]
[351677052,1738707065608,-500.0,0.00011365,2]
[351677053,1738707065619,-500.0,0.00011365,2]
[351677054,1738707065629,-1009.26,0.00011365,2]
[351677055,1738707065638,-500.0,0.00011365,2]
[351677056,1738707065648,-500.0,0.00011365,2]
[351677057,1738707065658,-500.0,0.00011365,2]
[351677058,1738707065668,-647.11,0.00011365,2]
[351677059,1738707065678,-525.8,0.00011365,2]